bitfinex/quotes_BTCUSD_20250108
["timestamp","ask_amount","ask_price","bid_price","bid_amount"]
[1736323562943,0.24058054,95711.0,95702.0,0.0568]
[1736323563411,0.24058054,95711.0,95710.0,0.001]
[1736323563839,0.24058054,95711.0,95702.0,0.0568]
[1736323564063,0.06584895,95710.0,95700.0,0.5489]
[1736323564271,0.06584895,95710.0,95709.0,0.00100047]
[1736323566230,0.06584895,95710.0,95709.0,4.7e-07]
[1736323566437,0.06584895,95710.0,95709.0,0.00100047]
[1736323566649,0.24058054,95711.0,95709.0,0.00100047]
[1736323567504,0.21968434,95711.0,95709.0,0.00100047]
[1736323567714,0.21968434,95711.0,95709.0,4.7e-07]
[1736323567923,0.21968434,95711.0,95709.0,0.00100047]
[1736323568968,0.001,95710.0,95709.0,0.00100047]
[1736323569823,0.001,95710.0,95709.0,4.7e-07]
[1736323570231,0.208966,95709.0,95700.0,0.54671903]
[1736323570443,0.208966,95709.0,95700.0,0.54687186]
[1736323570648,0.208984,95701.0,95700.0,0.54687186]
[1736323572061,0.208984,95701.0,95700.0,0.54787186]
[1736323573045,0.208984,95701.0,95700.0,0.54887186]
[1736323573669,0.208984,95701.0,95700.0,0.54787186]
[1736323573881,0.208984,95701.0,95700.0,0.54987186]
[1736323580114,0.209984,95701.0,95700.0,0.54987186]
[1736323580312,0.209984,95701.0,95700.0,0.54887186]
[1736323580519,0.209984,95701.0,95700.0,0.54687186]
[1736323580860,0.209984,95701.0,95700.0,0.54887186]
[1736323581032,0.209984,95701.0,95700.0,0.54787186]
[1736323581249,0.209984,95701.0,95700.0,0.54887186]
[1736323582207,0.209984,95701.0,95700.0,0.54787186]
[1736323583103,0.209984,95701.0,95700.0,0.54887186]
[1736323588361,0.2518804,95701.0,95700.0,0.54887186]
[1736323588828,0.209984,95701.0,95700.0,0.54887186]
[1736323590390,0.001,95701.0,95700.0,0.54887186]
[1736323592023,0.01161473,95701.0,95700.0,0.54887186]
[1736323592516,0.001,95701.0,95700.0,0.54887186]
[1736323600306,0.001,95701.0,95700.0,0.63087186]
[1736323605093,0.001,95701.0,95700.0,0.68763186]
[1736323612558,0.001,95701.0,95700.0,0.8149066]
[1736323622782,0.001,95701.0,95700.0,0.63087186]
[1736323623016,0.0219978,95701.0,95700.0,0.49997186]
[1736323624270,0.001,95701.0,95700.0,0.49997186]
[1736323625952,0.01147931,95701.0,95700.0,0.49997186]
[1736323626156,0.001,95701.0,95700.0,0.49997186]
[1736323628480,0.001,95701.0,95700.0,0.49897186]
[1736323629163,0.002,95701.0,95700.0,0.49897186]
[1736323629371,0.04506838,95701.0,95700.0,0.49697186]
[1736323629766,0.05106838,95701.0,95700.0,0.49697186]
[1736323630656,0.05006838,95701.0,95700.0,0.49697186]
[1736323631074,0.05106838,95701.0,95700.0,0.49697186]
[1736323631274,0.05606838,95701.0,95700.0,0.49697186]
[1736323631641,0.05506838,95701.0,95700.0,0.49697186]
[1736323632051,0.05606838,95701.0,95700.0,0.49697186]
[1736323632250,0.013,95701.0,95700.0,0.49697186]
[1736323632449,0.002,95701.0,95700.0,0.49697186]
[1736323632657,0.001,95701.0,95700.0,0.49697186]
[1736323632947,0.006,95701.0,95700.0,0.49697186]
[1736323633590,0.011,95701.0,95700.0,0.49697186]
[1736323634002,0.012,95701.0,95700.0,0.49697186]
[1736323636064,0.05606838,95701.0,95700.0,0.49697186]
[1736323639737,0.012,95701.0,95700.0,0.49697186]
[1736323643863,0.012,95701.0,95700.0,0.59697186]
[1736323644382,0.012,95701.0,95700.0,0.67547186]
[1736323645644,0.208966,95709.0,95700.0,0.67547186]
[1736323645878,0.208978,95704.0,95700.0,0.67547186]
[1736323646086,0.20898,95703.0,95700.0,0.67547186]
[1736323646862,0.41796,95703.0,95700.0,0.67547186]
[1736323647069,0.20898,95703.0,95701.0,0.0495]
[1736323648018,0.21498,95703.0,95701.0,0.0495]
[1736323648487,0.20998,95703.0,95701.0,0.0495]
[1736323648765,0.2738982,95703.0,95701.0,0.0495]
[1736323649694,0.2778982,95703.0,95701.0,0.0495]
[1736323649904,0.4868782,95703.0,95700.0,0.59697186]
[1736323650867,0.208984,95701.0,95700.0,0.59697186]
[1736323651078,0.39327223,95701.0,95700.0,0.59697186]
[1736323651289,0.54327223,95701.0,95700.0,0.59697186]
[1736323652114,0.54427223,95701.0,95700.0,0.59697186]
[1736323653314,0.64427223,95701.0,95700.0,0.57607286]
[1736323653490,0.74727223,95701.0,95700.0,0.55517386]
[1736323654181,0.74727223,95701.0,95700.0,0.53427486]
[1736323654556,0.74627223,95701.0,95700.0,0.45067886]
[1736323654746,0.74327223,95701.0,95700.0,0.45067886]
[1736323654967,0.77827223,95701.0,95700.0,0.36708286]
[1736323655102,0.77827223,95701.0,95700.0,0.34618386]
[1736323655319,0.77527223,95701.0,95700.0,0.34618386]
[1736323655725,0.77827223,95701.0,95700.0,0.26258786]
[1736323655957,0.77827223,95701.0,95700.0,0.24168886]
[1736323656285,0.77827223,95701.0,95700.0,0.24268886]
[1736323656286,1.11277223,95701.0,95700.0,0.24268886]
[1736323656725,1.10577223,95701.0,95700.0,0.24168886]
[1736323656862,1.11277223,95701.0,95700.0,0.22178986]
[1736323657066,1.02975874,95701.0,95700.0,0.22178986]
[1736323657271,0.99775874,95701.0,95700.0,0.22178986]
[1736323657476,0.99975874,95701.0,95700.0,0.22178986]
[1736323657894,0.99775874,95701.0,95700.0,0.22178986]
[1736323658331,0.99975874,95701.0,95700.0,0.22178986]
[1736323658690,1.10403348,95701.0,95700.0,0.20089086]
[1736323660922,1.10403348,95701.0,95700.0,0.17999186]
[1736323661073,1.10403348,95701.0,95700.0,0.11729486]
[1736323661298,1.10403348,95701.0,95700.0,0.09639586]
[1736323661747,1.10403348,95701.0,95700.0,0.07549686]
[1736323662432,1.10403348,95701.0,95700.0,0.05459786]
[1736323662635,1.10403348,95701.0,95700.0,8.6e-07]
[1736323663659,1.13603348,95701.0,95700.0,8.6e-07]
[1736323664723,1.10403348,95701.0,95700.0,8.6e-07]
[1736323666672,1.00403348,95701.0,95700.0,8.6e-07]
[1736323668000,0.79975874,95701.0,95700.0,8.6e-07]
[1736323668689,0.89975874,95701.0,95700.0,8.6e-07]
[1736323668896,0.79975874,95701.0,95700.0,8.6e-07]
[1736323670869,0.64975874,95701.0,95700.0,8.6e-07]
[1736323671351,0.64975874,95701.0,95700.0,0.10000086]
[1736323671557,0.75403348,95701.0,95700.0,0.10000086]
[1736323671998,0.64975874,95701.0,95700.0,0.10000086]
[1736323674236,0.32225874,95701.0,95700.0,0.10000086]
[1736323675443,0.217984,95701.0,95700.0,0.17580086]
[1736323676715,0.210984,95701.0,95700.0,0.1758]
[1736323677209,0.216984,95701.0,95700.0,0.1768]
[1736323677668,0.214984,95701.0,95700.0,0.1768]
[1736323677936,0.211984,95701.0,95700.0,0.1758]
[1736323678137,0.2752782,95701.0,95700.0,0.1758]
[1736323678278,0.2802782,95701.0,95700.0,0.1768]
[1736323678532,0.2802782,95701.0,95700.0,0.1758]
[1736323678733,0.39255294,95701.0,95700.0,0.101]
[1736323679148,0.39055294,95701.0,95700.0,0.101]
[1736323679598,0.39355294,95701.0,95700.0,0.101]
[1736323679813,0.225984,95701.0,95700.0,0.181]
[1736323680023,0.217984,95701.0,95700.0,0.2292]
[1736323680225,0.211984,95701.0,95700.0,0.2292]
[1736323680432,0.219984,95701.0,95700.0,0.2302]
[1736323680631,0.2829782,95701.0,95700.0,0.2292]
[1736323680840,0.2799782,95701.0,95700.0,0.2292]
[1736323681073,0.222984,95701.0,95700.0,0.2302]
[1736323681250,0.210984,95701.0,95700.0,0.2292]
[1736323681668,0.216984,95701.0,95700.0,0.2302]
[1736323682065,0.214984,95701.0,95700.0,0.2302]
[1736323682259,0.216984,95701.0,95700.0,0.2302]
[1736323682459,0.2442004,95701.0,95700.0,0.2302]
[1736323683114,0.216984,95701.0,95700.0,0.2302]
[1736323683354,0.210984,95701.0,95700.0,0.2292]
[1736323683628,0.215984,95701.0,95700.0,0.2292]
[1736323683851,0.210984,95701.0,95700.0,0.2292]
[1736323684337,0.215984,95701.0,95700.0,0.2292]
[1736323684594,0.208984,95701.0,95700.0,0.2292]
[1736323684841,0.215984,95701.0,95700.0,0.2292]
[1736323685072,0.210984,95701.0,95700.0,0.22868224]
[1736323685302,0.2509804,95701.0,95700.0,0.22868224]
[1736323685500,0.2519804,95701.0,95700.0,0.22868224]
[1736323685791,0.209984,95701.0,95700.0,0.22868224]
[1736323686273,0.208984,95701.0,95700.0,0.22868224]
[1736323687016,0.214984,95701.0,95700.0,0.22968224]
[1736323687273,0.21485824,95701.0,95700.0,0.22868224]
[1736323687517,0.21585824,95701.0,95700.0,0.22868224]
[1736323690081,0.20885824,95701.0,95700.0,0.22868224]
[1736323691236,0.25164206,95701.0,95700.0,0.22868224]
[1736323693506,0.25064206,95701.0,95700.0,0.22868224]
[1736323694220,0.25164206,95701.0,95700.0,0.22868224]
[1736323696877,0.25064206,95701.0,95700.0,0.14868224]
[1736323697118,0.25164206,95701.0,95700.0,0.14868224]
[1736323697331,0.25064206,95701.0,95700.0,0.14868224]
[1736323697558,0.25164206,95701.0,95700.0,0.14868224]
[1736323697794,0.25164206,95701.0,95700.0,0.09948224]
[1736323698022,0.3559168,95701.0,95700.0,0.09948224]
[1736323699461,0.3569168,95701.0,95700.0,0.09948224]
[1736323699712,0.3559168,95701.0,95700.0,0.09948224]
[1736323700191,0.3609168,95701.0,95700.0,0.09948224]
[1736323700538,0.3559168,95701.0,95700.0,0.09948224]
[1736323700771,0.3619168,95701.0,95700.0,0.09948224]
[1736323701165,0.3639168,95701.0,95700.0,0.09948224]
[1736323711955,0.3619168,95701.0,95700.0,0.09948224]
[1736323712158,0.3639168,95701.0,95700.0,0.09948224]
[1736323713087,0.3569168,95701.0,95700.0,0.09948224]
[1736323713262,0.3639168,95701.0,95700.0,0.09948224]
[1736323713669,0.3549168,95701.0,95700.0,0.09948224]
[1736323713900,0.3619168,95701.0,95700.0,0.09948224]
[1736323714107,0.3639168,95701.0,95700.0,0.09948224]
[1736323714290,0.3569168,95701.0,95700.0,0.17978224]
[1736323714486,0.3619168,95701.0,95700.0,0.17978224]
[1736323714863,0.3639168,95701.0,95700.0,0.17978224]
[1736323715916,0.3619168,95701.0,95700.0,0.17978224]
[1736323716318,0.3689168,95701.0,95700.0,0.17978224]
[1736323716526,0.3619168,95701.0,95700.0,0.17978224]
[1736323716907,0.3689168,95701.0,95700.0,0.17978224]
[1736323717208,0.3549168,95701.0,95700.0,0.17978224]
[1736323717408,0.3639168,95701.0,95700.0,0.17978224]
[1736323717750,0.3431485,95701.0,95700.0,0.17978224]
[1736323717975,0.29936468,95701.0,95700.0,0.17978224]
[1736323718189,0.30136468,95701.0,95700.0,0.17978224]
[1736323718812,0.29936468,95701.0,95700.0,0.17978224]
[1736323719247,0.30136468,95701.0,95700.0,0.17978224]
[1736323719438,0.29436468,95701.0,95700.0,0.17978224]
[1736323719665,0.30136468,95701.0,95700.0,0.17978224]
[1736323719870,0.19708994,95701.0,95700.0,0.22908224]
[1736323720731,0.19508994,95701.0,95700.0,0.22908224]
[1736323721364,0.19708994,95701.0,95700.0,0.22908224]
[1736323722799,0.19008994,95701.0,95700.0,0.22908224]
[1736323723072,0.18808994,95701.0,95700.0,0.22908224]
[1736323723276,0.19508994,95701.0,95700.0,0.22908224]
[1736323723990,0.18808994,95701.0,95700.0,0.22908224]
[1736323724532,0.19008994,95701.0,95700.0,0.22908224]
[1736323724937,0.19508994,95701.0,95700.0,0.22908224]
[1736323725447,0.19708994,95701.0,95700.0,0.22908224]
[1736323726068,0.19008994,95701.0,95700.0,0.22908224]
[1736323726611,0.19608994,95701.0,95700.0,0.22908224]
[1736323737024,0.23659693,95701.0,95700.0,0.14878224]
[1736323738031,0.23659693,95701.0,95700.0,0.09948224]
[1736323738846,0.49087167,95701.0,95700.0,0.07858324]
[1736323739060,0.1,95693.0,95688.0,8.53e-05]
[1736323739278,0.35901,95689.0,95688.0,8.53e-05]
[1736323739490,0.46328474,95689.0,95688.0,8.53e-05]
[1736323741092,0.47028474,95689.0,95688.0,8.53e-05]
[1736323744148,0.48106637,95689.0,95688.0,8.53e-05]
[1736323744334,0.58534111,95689.0,95688.0,8.53e-05]
[1736323748099,0.58534111,95689.0,95684.0,9e-07]
[1736323748100,0.1,95685.0,95684.0,9e-07]
[1736323748315,0.35427474,95685.0,95684.0,9e-07]
[1736323749271,0.25427474,95685.0,95684.0,9e-07]
[1736323749498,0.35854948,95685.0,95684.0,9e-07]
[1736323750102,0.25427474,95685.0,95684.0,9e-07]
[1736323751286,0.209014,95687.0,95685.0,0.0758]
[1736323751561,0.209014,95687.0,95686.0,0.0471]
[1736323753914,0.211014,95687.0,95686.0,0.0471]
[1736323754471,0.217014,95687.0,95686.0,0.0471]
[1736323754798,0.28159466,95687.0,95686.0,0.0471]
[1736323759366,0.27959466,95687.0,95686.0,0.0471]
[1736323759903,0.27559466,95687.0,95686.0,0.0471]
[1736323760108,0.28159466,95687.0,95686.0,0.0471]
[1736323760462,0.27959466,95687.0,95686.0,0.0471]
[1736323760868,0.27359466,95687.0,95686.0,0.0471]
[1736323761398,0.27959466,95687.0,95686.0,0.0471]
[1736323762184,0.28159466,95687.0,95686.0,0.0471]
[1736323762565,0.27959466,95687.0,95686.0,0.0471]
[1736323762901,0.28159466,95687.0,95686.0,0.0471]
[1736323765093,0.27959466,95687.0,95686.0,0.0471]
[1736323765325,0.5338694,95687.0,95686.0,0.0471]
[1736323765565,0.209021,95684.0,95675.0,0.0484]
[1736323765780,0.209045,95673.0,95671.0,8.53e-05]
[1736323766012,0.10427474,95672.0,95671.0,8.53e-05]
[1736323767591,0.10827474,95672.0,95671.0,8.53e-05]
[1736323770494,0.1187189,95672.0,95671.0,8.53e-05]
[1736323770695,0.19330229,95672.0,95671.0,8.53e-05]
[1736323772101,0.29330229,95672.0,95671.0,8.53e-05]
[1736323772548,0.44330229,95672.0,95671.0,8.53e-05]
[1736323773407,0.44130229,95672.0,95671.0,8.53e-05]
[1736323773812,0.44830229,95672.0,95671.0,8.53e-05]
[1736323776140,0.77580229,95672.0,95671.0,8.53e-05]
[1736323777158,0.67580229,95672.0,95671.0,8.53e-05]
[1736323777510,0.67580229,95672.0,95671.0,0.0793853]
[1736323778336,0.6012189,95672.0,95671.0,0.1244853]
[1736323778963,0.6012189,95672.0,95671.0,8.53e-05]
[1736323781445,0.6012189,95672.0,95671.0,0.0776853]
[1736323786087,0.6012189,95672.0,95671.0,8.53e-05]
[1736323786289,0.70549364,95672.0,95671.0,8.53e-05]
[1736323804583,0.6012189,95672.0,95671.0,0.1248853]
[1736323808623,0.34694416,95672.0,95671.0,0.1248853]
[1736323809467,0.3365,95672.0,95671.0,0.1248853]
[1736323810717,0.009,95672.0,95671.0,0.1248853]
[1736323811316,0.209034,95678.0,95671.0,0.1248853]
[1736323811317,0.209034,95678.0,95671.0,8.53e-05]
[1736323811519,0.209034,95678.0,95672.0,0.1235]
[1736323811762,0.01034001,95683.0,95674.0,0.0754]
[1736323812192,0.209041,95675.0,95674.0,0.0754]
[1736323812599,0.209041,95675.0,95674.0,0.1217]
[1736323813603,0.209036,95677.0,95674.0,0.1217]
[1736323813808,0.209036,95677.0,95672.0,0.122]
[1736323814212,0.209033,95679.0,95673.0,0.023]
[1736323814429,0.209033,95679.0,95674.0,0.122]
[1736323814635,0.209033,95679.0,95673.0,0.023]
[1736323814868,0.209033,95679.0,95675.0,0.0485]
[1736323815071,0.209033,95679.0,95676.0,0.0755]
[1736323815272,0.209033,95679.0,95677.0,0.0485]
[1736323815487,0.209033,95679.0,95678.0,0.079]
[1736323816763,0.209033,95679.0,95678.0,0.1244]
[1736323822990,0.418044,95684.0,95679.0,0.0816]
[1736323823196,0.42858833,95684.0,95679.0,0.0816]
[1736323824193,0.418044,95684.0,95679.0,0.0816]
[1736323835135,0.418044,95684.0,95680.0,0.00237547]
[1736323840011,0.418044,95684.0,95681.0,0.0814]
[1736323840328,0.418044,95684.0,95682.0,0.00236764]
[1736323845655,0.418044,95684.0,95683.0,0.0829]
[1736323846064,0.418044,95684.0,95683.0,0.08517012]
[1736323856442,0.418044,95684.0,95683.0,0.08247012]
[1736323863515,0.4179182,95684.0,95683.0,0.08247012]
[1736323863697,0.4179182,95684.0,95683.0,0.13247012]
[1736323863855,0.4179182,95684.0,95683.0,0.1302]
[1736323864036,0.4179182,95684.0,95683.0,0.13257517]
[1736323867317,0.2088962,95684.0,95683.0,0.18157517]
[1736323867804,0.209009,95690.0,95685.0,0.049]
[1736323868020,0.20905979,95690.0,95686.0,0.0773]
[1736323868245,0.20905979,95690.0,95686.0,0.07967275]
[1736323868444,0.41806879,95690.0,95686.0,0.07967275]
[1736323868598,5.079e-05,95690.0,95687.0,0.10427474]
[1736323868790,5.079e-05,95690.0,95687.0,0.10664716]
[1736323869090,5.079e-05,95690.0,95689.0,0.1237]
[1736323869287,5.079e-05,95690.0,95689.0,0.22901964]
[1736323869488,5.079e-05,95690.0,95689.0,0.23034649]
[1736323869688,5.079e-05,95690.0,95689.0,0.24166639]
[1736323870823,5.079e-05,95690.0,95689.0,0.23034649]
[1736323871889,5.079e-05,95690.0,95689.0,0.24165256]
[1736323872958,5.079e-05,95690.0,95689.0,0.23034649]
[1736323884778,5.079e-05,95690.0,95689.0,0.24163784]
[1736323886233,5.079e-05,95690.0,95689.0,0.27494165]
[1736323887203,5.079e-05,95690.0,95689.0,0.42494165]
[1736323887433,5.079e-05,95690.0,95689.0,0.52494165]
[1736323887669,5.079e-05,95690.0,95689.0,0.64304429]
[1736323888125,0.0001706,95723.0,95709.0,0.208966]
[1736323888341,0.0001706,95723.0,95709.0,0.49914074]
[1736323888572,0.00105093,95710.0,95709.0,0.50150026]
[1736323889080,0.00105093,95710.0,95709.0,0.53579161]
[1736323890922,0.00105093,95710.0,95709.0,0.68579161]
[1736323892307,0.00105093,95710.0,95709.0,0.88579161]
[1736323894423,0.0001706,95723.0,95722.0,0.208938]
[1736323894585,0.00022152,95723.0,95722.0,0.43641274]
[1736323894792,0.00022152,95723.0,95722.0,0.71199287]
[1736323894996,0.00022152,95723.0,95722.0,0.81199287]
[1736323895424,0.00022152,95723.0,95722.0,0.82324787]
[1736323895636,0.0001706,95754.0,95728.0,0.2]
[1736323895852,0.0001706,95754.0,95728.0,1.14334396]
[1736323896056,0.0001706,95754.0,95728.0,1.14487693]
[1736323896483,0.0001706,95754.0,95728.0,1.15613193]
[1736323897886,0.0001706,95754.0,95728.0,1.21245193]
[1736323898653,0.0001706,95754.0,95728.0,1.15613193]
[1736323898841,0.0001706,95754.0,95728.0,1.23046091]
[1736323899269,0.0001706,95754.0,95728.0,1.24619896]
[1736323899270,0.0011706,95729.0,95728.0,1.24619896]
[1736323905264,0.0001706,95729.0,95728.0,1.24619896]
[1736323905575,0.0001706,95729.0,95728.0,0.95614091]
[1736323905999,0.0001706,95729.0,95728.0,1.01246091]
[1736323906210,0.0001706,95729.0,95728.0,1.11745193]
[1736323906620,0.0001706,95729.0,95728.0,1.10619693]
[1736323907436,0.0001706,95729.0,95728.0,1.1174151]
[1736323907618,0.0001706,95729.0,95728.0,1.2174151]
[1736323909626,0.0001706,95729.0,95728.0,1.1610951]
[1736323909834,0.0001706,95729.0,95728.0,1.1174151]
[1736323911522,0.0001706,95729.0,95728.0,1.2174151]
[1736323912793,0.0001706,95729.0,95728.0,1.23538648]
[1736323913421,0.0001706,95754.0,95739.0,0.4725]
[1736323913627,0.0001706,95754.0,95739.0,0.80867574]
[1736323913846,0.0001706,95754.0,95739.0,0.81123649]
[1736323914057,0.0001706,95754.0,95739.0,0.84042604]
[1736323914469,0.0001706,95754.0,95739.0,0.89674604]
[1736323914691,0.0011706,95740.0,95739.0,0.90174604]
[1736323916739,0.0011706,95740.0,95739.0,1.22954604]
[1736323919073,0.0011706,95740.0,95739.0,1.23988279]
[1736323920498,0.0011706,95740.0,95739.0,1.23918279]
[1736323921508,0.0011706,95740.0,95739.0,1.29251271]
[1736323922497,0.0011706,95740.0,95739.0,1.26016177]
[1736323922698,0.0011706,95740.0,95739.0,1.29252603]
[1736323925862,0.0011706,95740.0,95739.0,1.29052603]
[1736323927351,0.0011706,95740.0,95739.0,0.95340075]
[1736323927523,0.0011706,95740.0,95739.0,0.88416123]
[1736323927994,0.0011706,95740.0,95739.0,0.52526023]
[1736323928609,0.0011706,95740.0,95739.0,0.65640155]
[1736323928824,0.0011706,95740.0,95739.0,0.32860155]
[1736323929862,0.0011706,95740.0,95739.0,0.17860155]
[1736323930588,0.0011706,95740.0,95739.0,0.16731549]
[1736323930802,0.0001706,95740.0,95739.0,0.16231549]
[1736323931055,0.0001706,95740.0,95739.0,0.16531549]
[1736323932704,0.0001706,95740.0,95739.0,0.17659571]
[1736323933461,0.0001706,95740.0,95739.0,0.17359571]
[1736323933863,0.0001706,95740.0,95739.0,0.17759571]
[1736323934055,0.0001706,95740.0,95739.0,0.16631549]
[1736323934239,0.0001706,95740.0,95739.0,0.16231549]
[1736323935127,0.0001706,95740.0,95739.0,0.16161549]
[1736323935763,0.0001706,95740.0,95739.0,0.16561549]
[1736323936181,0.0011706,95740.0,95739.0,0.17261549]
[1736323938612,0.0011706,95740.0,95739.0,0.17365984]
[1736323938811,0.0011706,95740.0,95739.0,0.29715984]
[1736323939012,0.0011706,95740.0,95739.0,0.29611549]
[1736323939441,0.0011706,95740.0,95739.0,0.30739122]
[1736323939814,0.0011706,95740.0,95739.0,0.29211549]
[1736323939958,0.0001706,95740.0,95739.0,0.29638996]
[1736323940156,0.0011706,95740.0,95739.0,0.30838996]
[1736323940356,0.0011706,95740.0,95739.0,0.29711549]
[1736323941464,0.0011706,95740.0,95739.0,0.17361549]
[1736323941661,0.0011706,95740.0,95739.0,0.17465979]
[1736323942074,0.0011706,95740.0,95739.0,0.17361549]
[1736323944620,0.0001706,95740.0,95739.0,0.16661549]
[1736323944832,0.0001706,95740.0,95739.0,0.16161549]
[1736323945031,0.0011706,95740.0,95739.0,0.16861549]
[1736323945237,0.0011706,95740.0,95739.0,0.17361549]
[1736323945840,0.0001706,95740.0,95739.0,0.16661549]
[1736323946038,0.0001706,95740.0,95739.0,0.17361549]
[1736323946250,0.0011706,95740.0,95739.0,0.17361549]
[1736323946451,0.0001706,95740.0,95739.0,0.16161549]
[1736323946716,0.0001706,95740.0,95739.0,0.16461549]
[1736323946912,0.0011706,95740.0,95739.0,0.17161549]
[1736323948253,0.0001706,95740.0,95739.0,0.16461549]
[1736323948462,0.0011706,95740.0,95739.0,0.16861549]
[1736323948668,0.0001706,95740.0,95739.0,0.16161549]
[1736323948995,0.0011706,95740.0,95739.0,0.16861549]
[1736323949291,0.0001706,95740.0,95739.0,0.16661549]
[1736323949521,0.0001706,95740.0,95739.0,0.17361549]
[1736323949701,0.0011706,95740.0,95739.0,0.16861549]
[1736323950133,0.0001706,95740.0,95739.0,0.16461549]
[1736323950997,0.0001706,95740.0,95739.0,0.24521549]
[1736323951237,0.0001706,95740.0,95739.0,0.45411649]
[1736323951422,0.0001706,95740.0,95739.0,0.24521549]
[1736323951980,0.0001706,95740.0,95739.0,0.25221549]
[1736323951981,0.0011706,95740.0,95739.0,0.25221549]
[1736323952342,0.0001706,95740.0,95739.0,0.24221549]
[1736323952551,0.0001706,95740.0,95739.0,0.10933549]
[1736323952739,0.0011706,95740.0,95739.0,0.17285549]
[1736323953174,0.0001706,95740.0,95739.0,0.16185549]
[1736323953390,0.0011706,95740.0,95739.0,0.16885549]
[1736323953595,0.0011706,95740.0,95739.0,0.01256075]
[1736323953802,0.0001706,95740.0,95739.0,0.06208075]
[1736323953984,0.0001706,95740.0,95739.0,0.05952]
[1736323954132,0.0001706,95740.0,95739.0,0.06204291]
[1736323954962,0.0011706,95740.0,95739.0,0.06904291]
[1736323955164,0.0011706,95740.0,95739.0,0.01]
[1736323955363,0.208901,95739.0,95736.0,0.05652]
[1736323955614,0.25098482,95739.0,95736.0,0.05652]
[1736323955818,0.25098482,95739.0,95737.0,0.00252469]
[1736323956225,0.208901,95739.0,95736.0,0.05652]
[1736323956645,0.208901,95739.0,95737.0,0.00252469]
[1736323957068,0.208901,95739.0,95737.0,0.004]
[1736323957833,0.0027,95738.0,95737.0,0.004]
[1736323958034,0.02131287,95738.0,95737.0,0.004]
[1736323958269,0.07079147,95738.0,95737.0,0.004]
[1736323958645,0.0347,95735.0,95715.0,0.05652]
[1736323958852,0.208949,95718.0,95715.0,0.05652]
[1736323960066,0.208949,95718.0,95716.0,0.00253422]
[1736323960276,0.209949,95718.0,95715.0,0.06352]
[1736323960428,0.209949,95718.0,95716.0,0.00230384]
[1736323960824,0.209949,95718.0,95715.0,0.06352]
[1736323960825,0.001,95718.0,95715.0,0.06352]
[1736323961197,0.001,95718.0,95716.0,0.00253422]
[1736323961582,0.0027,95724.0,95715.0,0.05652]
[1736323961756,0.001,95718.0,95717.0,0.08273386]
[1736323961924,0.001,95718.0,95717.0,0.0802]
[1736323962119,0.20893,95726.0,95717.0,0.18805323]
[1736323962120,0.21931907,95726.0,95717.0,0.18805323]
[1736323962326,0.0027,95730.0,95718.0,0.10531935]
[1736323962530,0.0027,95730.0,95719.0,0.00253312]
[1736323962745,0.211622,95730.0,95720.0,0.10531931]
[1736323963167,0.211622,95730.0,95721.0,0.00253238]
[1736323963168,0.22188831,95730.0,95721.0,0.00253238]
[1736323964223,0.22188831,95730.0,95721.0,0.00357695]
[1736323965298,0.21918831,95730.0,95721.0,0.00557695]
[1736323965809,0.536409,95736.0,95723.0,0.0822]
[1736323965932,0.536409,95736.0,95724.0,0.10531924]
[1736323966159,0.536409,95736.0,95725.0,0.00230083]
[1736323966347,0.536409,95736.0,95726.0,0.10427474]
[1736323966772,0.536409,95736.0,95727.0,0.00334466]
[1736323966999,0.536409,95736.0,95727.0,0.1076194]
[1736323967506,0.3275,95736.0,95727.0,0.1076194]
[1736323967714,0.208905,95737.0,95728.0,0.0823]
[1736323967987,0.002,95736.0,95729.0,0.00229949]
[1736323968411,0.00050931,95738.0,95730.0,0.10531924]
[1736323968806,0.00050931,95738.0,95731.0,0.00229882]
[1736323969010,0.00050931,95738.0,95732.0,0.1053192]
[1736323969385,0.00050931,95738.0,95733.0,0.00229815]
[1736323969612,0.00050931,95738.0,95735.0,0.078]
[1736323970023,0.00050931,95738.0,95736.0,0.00229715]
[1736323970347,0.00050931,95738.0,95737.0,0.15401915]
[1736323970700,0.00050931,95738.0,95737.0,0.15631597]
[1736323971683,0.00050931,95738.0,95737.0,0.15731597]
[1736323972098,0.00050931,95738.0,95737.0,0.15631597]
[1736323972303,0.00050931,95738.0,95737.0,0.15931597]
[1736323972504,0.00050931,95738.0,95737.0,0.16031597]
[1736323972987,0.00050931,95738.0,95737.0,0.15631597]
[1736323973177,0.00050931,95738.0,95737.0,0.15831597]
[1736323973904,0.00050931,95738.0,95737.0,0.38461597]
[1736323974178,0.00050931,95738.0,95737.0,0.38357156]
[1736323974424,0.00050931,95738.0,95737.0,0.38757156]
[1736323974647,0.00050931,95738.0,95737.0,0.39485459]
[1736323974881,0.00150931,95738.0,95737.0,0.40185459]
[1736323975358,0.00150931,95738.0,95737.0,0.39285459]
[1736323975359,0.00050931,95738.0,95737.0,0.39285459]
[1736323975593,0.00150931,95738.0,95737.0,0.40185459]
[1736323975824,0.00050931,95738.0,95737.0,0.39585459]
[1736323976271,0.00150931,95738.0,95737.0,0.40185459]
[1736323976514,0.00150931,95738.0,95737.0,0.40685459]
[1736323984523,0.00150931,95738.0,95737.0,0.39557156]
[1736323989563,0.00150931,95738.0,95737.0,0.40685459]
[1736323989749,0.00150931,95738.0,95737.0,0.42985459]
[1736323990547,0.00150931,95738.0,95737.0,0.43763921]
[1736323991862,0.00150931,95738.0,95737.0,0.52715459]
[1736323992489,0.00150931,95738.0,95737.0,0.53493921]
[1736323992640,0.00150931,95738.0,95737.0,0.63493921]
[1736323993768,0.00150931,95738.0,95737.0,0.62365618]
[1736323993973,0.00150931,95738.0,95737.0,0.63494852]
[1736323997549,0.00150931,95738.0,95737.0,0.96274852]
[1736323997748,0.00150931,95738.0,95737.0,0.99518194]
[1736323998418,0.00150931,95738.0,95737.0,1.10518194]
[1736323999028,0.00050931,95738.0,95737.0,1.09618194]
[1736323999226,0.0001706,95740.0,95739.0,0.4955]
[1736323999517,0.0001706,95740.0,95739.0,0.63437337]
[1736323999773,0.0001706,95740.0,95739.0,0.64566571]
[1736323999957,0.0001706,95740.0,95739.0,1.08346571]
[1736324000189,0.0001706,95740.0,95739.0,1.09125033]
[1736324000444,0.0011706,95740.0,95739.0,1.10025033]
[1736324000648,0.0011706,95740.0,95739.0,1.10725033]
[1736324001278,0.0011706,95740.0,95739.0,1.10025033]
[1736324001453,0.0011706,95740.0,95739.0,1.10725033]
[1736324002070,0.0001706,95740.0,95739.0,1.09825033]
[1736324002269,0.0001706,95740.0,95739.0,1.10725033]
[1736324003108,0.0001706,95740.0,95739.0,1.11759116]
[1736324003364,0.0001706,95740.0,95739.0,1.65799116]
[1736324003599,0.0001706,95754.0,95742.0,0.5829]
[1736324003819,0.0001706,95754.0,95742.0,0.74260816]
[1736324003991,0.0001706,95754.0,95742.0,0.74476638]
[1736324004167,0.0001706,95754.0,95742.0,0.75605872]